fUST/lending_fUST_20260117
["ID","MTS","AMOUNT","RATE_DAILY","PERIOD"]
[402318399,1768657842772,-1524.89,0.00016438,3]
[402318400,1768657842781,-500.0,0.00016438,3]
[402318404,1768657842790,-500.0,0.00016438,3]
[402318407,1768657842800,-500.0,0.00016438,3]
[402318408,1768657842809,-500.0,0.00016438,3]
[402318410,1768657842819,-500.0,0.00016438,3]
[402318413,1768657842828,-500.0,0.00016438,3]
[402318414,1768657842838,-500.0,0.00016438,3]
[402318416,1768657842847,-500.0,0.00016438,3]
[402318418,1768657842856,-500.0,0.00016438,3]
[402318420,1768657842866,-500.0,0.00016438,3]
[402318422,1768657842876,-500.0,0.00016438,3]
[402318424,1768657842885,-500.0,0.00016438,3]
[402318426,1768657842895,-500.0,0.00016438,3]
[402318428,1768657842904,-500.0,0.00016438,3]
[402318430,1768657842914,-500.0,0.00016438,3]
[402318432,1768657842924,-500.0,0.00016438,3]
[402318434,1768657842934,-500.0,0.00016438,3]
[402318436,1768657842943,-500.0,0.00016438,3]
[402318438,1768657842953,-544.42342876,0.00016438,3]
[402318440,1768657842962,-500.0,0.00016438,3]
[402318442,1768657842972,-500.0,0.00016438,3]
[402318444,1768657842981,-500.0,0.00016438,3]
[402318446,1768657842990,-1089.59,0.00016438,3]
[402318448,1768657842999,-500.0,0.00016438,3]
[402318450,1768657843009,-500.0,0.00016438,3]
[402318452,1768657843018,-933.14,0.00016438,3]
[402318454,1768657843027,-500.0,0.00016438,3]
[402318456,1768657843036,-500.0,0.00016438,3]
[402318458,1768657843046,-1056.48,0.00016438,3]
[402318460,1768657843055,-717.05,0.00016438,3]
[402318462,1768657843064,-500.0,0.00016438,3]
[402318464,1768657843073,-500.0,0.00016438,3]
[402318466,1768657843082,-500.0,0.00016438,3]
[402318468,1768657843091,-1358.73,0.00016438,3]
[402318484,1768657843233,-500.0,0.00016438,3]
[402318486,1768657843246,-1278.39,0.00016438,3]
[402318488,1768657843257,-813.23,0.00016438,3]
[402318490,1768657843267,-500.0,0.00016438,3]
[402318492,1768657843276,-500.0,0.00016438,3]
[402318495,1768657843288,-1198.46,0.00016438,3]
[402318497,1768657843298,-501.85,0.00016438,3]
[402318499,1768657843307,-500.0,0.00016438,3]
[402318501,1768657843316,-1766.3,0.00016438,3]
[402318503,1768657843326,-500.0,0.00016438,3]
[402318505,1768657843335,-500.0,0.00016438,3]
[402318507,1768657843345,-595.74,0.00016438,3]
[402318509,1768657843354,-500.0,0.00016438,3]
[402318511,1768657843365,-500.0,0.00016438,3]
[402318513,1768657843374,-500.0,0.00016438,3]
[402318515,1768657843383,-874.38,0.00016438,3]
[402318517,1768657843393,-500.0,0.00016438,3]
[402318519,1768657843403,-500.0,0.00016438,3]
[402318521,1768657843412,-1578.17,0.00016438,3]
[402318523,1768657843421,-864.95,0.00016438,3]
[402318525,1768657843431,-500.0,0.00016438,3]
[402318527,1768657843439,-500.0,0.00016438,3]
[402318529,1768657843448,-654.14,0.00016438,3]
[402318531,1768657843458,-500.0,0.00016438,3]
[402318533,1768657843467,-500.0,0.00016438,3]
[402318535,1768657843476,-500.0,0.00016438,3]
[402318537,1768657843486,-358.09548366,0.00016438,3]
[402318539,1768657843495,-508.84,0.00016438,3]
[402318541,1768657843504,-500.0,0.00016438,3]
[402318543,1768657843513,-500.0,0.00016438,3]
[402318545,1768657843523,-578.47,0.00016438,3]
[402318547,1768657843533,-500.0,0.00016438,3]
[402318549,1768657843542,-701.97,0.00016438,3]
[402318551,1768657843552,-608.57,0.00016438,3]
[402318553,1768657843561,-922.65,0.00016438,3]
[402318555,1768657843571,-500.0,0.00016438,3]
[402318557,1768657843581,-500.0,0.00016438,3]
[402318559,1768657843591,-848.7,0.00016438,3]
[402318561,1768657843600,-500.0,0.00016438,3]
[402318564,1768657843610,-500.0,0.00016438,3]
[402318565,1768657843620,-1650.76,0.00016438,3]
[402318567,1768657843629,-500.0,0.00016438,3]
[402318569,1768657843639,-890.28,0.00016438,3]
[402318571,1768657843649,-500.0,0.00016438,3]
[402318574,1768657843659,-521.96,0.00016438,3]
[402318576,1768657843669,-500.0,0.00016438,3]
[402318578,1768657843678,-1377.07,0.00016438,3]
[402318580,1768657843687,-1578.68,0.00016438,3]
[402318582,1768657843697,-523.41303574,0.00016438,3]
[402318584,1768657843706,-696.53,0.00016438,3]
[402318586,1768657843715,-1279.92,0.00016438,3]
[402318588,1768657843725,-500.0,0.00016438,3]
[402318590,1768657843734,-500.0,0.00016438,3]
[402318592,1768657843744,-500.0,0.00016438,3]
[402318594,1768657843753,-958.52,0.00016438,3]
[402318596,1768657843762,-1612.03,0.00016438,3]
[402318598,1768657843772,-912.53,0.00016438,3]
[402318600,1768657843781,-500.0,0.00016438,3]
[402318602,1768657843791,-500.0,0.00016438,3]
[402318604,1768657843801,-895.77,0.00016438,3]
[402318606,1768657843810,-534.25045514,0.00016438,3]
[402318608,1768657843819,-1812.12,0.00016438,3]
[402318610,1768657843829,-841.51,0.00016438,3]
[402318612,1768657843839,-565.76,0.00016438,3]
[402318614,1768657843848,-939.3,0.00016438,3]
[402318616,1768657843858,-500.0,0.00016438,3]
[402318618,1768657843868,-500.0,0.00016438,3]
[402318620,1768657843877,-604.25264706,0.00016438,3]
[402318622,1768657843888,-1708.95,0.00016438,3]
[402318624,1768657843899,-500.0,0.00016438,3]
[402318626,1768657843908,-1000.0,0.00016438,2]
[402318628,1768657843918,-500.0,0.00016438,3]
[402318630,1768657843928,-500.0,0.00016438,3]
[402318632,1768657843937,-500.0,0.00016438,3]
[402318634,1768657843946,-1252.99,0.00016438,3]
[402318636,1768657843955,-2210.44,0.00016438,3]
[402318638,1768657843965,-500.0,0.00016438,3]
[402318640,1768657843975,-500.0,0.00016438,3]
[402318642,1768657843984,-500.0,0.00016438,3]
[402318644,1768657843994,-500.0,0.00016438,3]
[402318646,1768657844003,-500.0,0.00016438,3]
[402318648,1768657844013,-709.56,0.00016438,3]
[402318650,1768657844022,-521.02,0.00016438,3]
[402318652,1768657844032,-629.24,0.00016438,3]
[402318654,1768657844041,-500.0,0.00016438,3]
[402318656,1768657844051,-513.21,0.00016438,3]
[402318658,1768657844060,-247.25068519,0.00016438,3]
[402318660,1768657844070,-500.0,0.00016438,3]
[402318662,1768657844080,-500.0,0.00016438,3]
[402318664,1768657844089,-500.0,0.00016438,3]
[402318666,1768657844099,-500.0,0.00016438,3]
[402318668,1768657844108,-501.5424196,0.00016438,3]
[402318670,1768657844118,-500.0,0.00016438,3]
[402318672,1768657844127,-302.42547068,0.00016438,3]
[402318674,1768657844137,-621.86,0.00016438,3]
[402318676,1768657844148,-500.0,0.00016438,3]
[402318678,1768657844158,-500.0,0.00016438,3]
[402318680,1768657844167,-500.0,0.00016438,3]
[402318682,1768657844176,-500.0,0.00016438,3]
[402318684,1768657844190,-1202.31,0.00016438,3]
[402318686,1768657844200,-500.0,0.00016438,3]
[402318688,1768657844210,-500.0,0.00016438,3]
[402318690,1768657844220,-500.0,0.00016438,3]
[402318692,1768657844230,-1508.93,0.00016438,3]
[402318694,1768657844240,-500.0,0.00016438,3]
[402318696,1768657844249,-500.0,0.00016438,3]
[402318698,1768657844259,-1266.51,0.00016438,3]
[402318700,1768657844268,-767.52,0.00016438,3]
[402318702,1768657844279,-500.0,0.00016438,3]
[402318704,1768657844289,-1200.19,0.00016438,3]
[402318706,1768657844299,-1421.75,0.00016438,3]
[402318709,1768657844309,-500.0,0.00016438,3]
[402318711,1768657844318,-1545.72,0.00016438,3]
[402318713,1768657844327,-500.0,0.00016438,3]
[402318714,1768657844336,-500.0,0.00016438,3]
[402318716,1768657844347,-443.90722234,0.00016438,3]
[402318718,1768657844356,-500.0,0.00016438,3]
[402318721,1768657844366,-809.58,0.00016438,3]
[402318723,1768657844375,-1919.96,0.00016438,3]
[402318724,1768657844384,-500.0,0.00016438,3]
[402318726,1768657844394,-1024.94,0.00016438,3]
[402318728,1768657844403,-500.0,0.00016438,3]
[402318730,1768657844412,-615.61,0.00016438,3]
[402318732,1768657844423,-748.84,0.00016438,3]
[402318735,1768657844432,-500.0,0.00016438,3]
[402318737,1768657844442,-521.07,0.00016438,3]
[402318739,1768657844451,-550.35,0.00016438,3]
[402318741,1768657844460,-2429.64,0.00016438,3]
[402318743,1768657844470,-500.0,0.00016438,3]
[402318745,1768657844479,-500.0,0.00016438,3]
[402318747,1768657844488,-502.00992738,0.00016438,3]
[402318748,1768657844498,-500.0,0.00016438,3]
[402318749,1768657844507,-500.0,0.00016438,3]
[402318750,1768657844516,-538.97966179,0.00016438,3]
[402318752,1768657844525,-500.0,0.00016438,3]
[402318754,1768657844534,-500.0,0.00016438,3]
[402318757,1768657844544,-500.0,0.00016438,3]
[402318759,1768657844554,-500.0,0.00016438,3]
[402318761,1768657844564,-711.85,0.00016438,3]
[402318763,1768657844573,-585.93,0.00016438,3]
[402318765,1768657844583,-740.9,0.00016438,3]
[402318767,1768657844592,-199.4,0.00016438,2]
[402318769,1768657844602,-500.0,0.00016438,3]
[402318771,1768657844611,-500.0,0.00016438,3]
[402318773,1768657844621,-500.0,0.00016438,3]
[402318775,1768657844630,-749.87,0.00016438,3]
[402318777,1768657844640,-1462.44,0.00016438,3]
[402318779,1768657844650,-500.0,0.00016438,3]
[402318781,1768657844659,-500.0,0.00016438,3]
[402318783,1768657844668,-500.0,0.00016438,3]
[402318785,1768657844678,-913.3,0.00016438,3]
[402318787,1768657844687,-1434.09,0.00016438,3]
[402318790,1768657844697,-1026.02,0.00016438,3]
[402318791,1768657844707,-1259.51,0.00016438,3]
[402318794,1768657844718,-858.66,0.00016438,3]
[402318796,1768657844728,-500.0,0.00016438,3]
[402318798,1768657844738,-551.45,0.00016438,3]
[402318800,1768657844747,-500.0,0.00016438,3]
[402318801,1768657844756,-1402.48,0.00016438,3]
[402318803,1768657844766,-1748.91,0.00016438,3]
[402318806,1768657844776,-500.0,0.00016438,3]
[402318808,1768657844785,-502.72122114,0.00016438,3]
[402318810,1768657844795,-503.23047835,0.00016438,3]
[402318812,1768657844804,-500.0,0.00016438,3]
[402318813,1768657844813,-1350.82,0.00016438,3]
[402318816,1768657844823,-597.6,0.00016438,3]
[402318818,1768657844832,-500.0,0.00016438,3]
[402318820,1768657844842,-500.0,0.00016438,3]
[402318822,1768657844852,-828.04,0.00016438,3]
[402318824,1768657844862,-1540.55,0.00016438,3]
[402318826,1768657844871,-500.0,0.00016438,3]
[402318828,1768657844880,-1116.63,0.00016438,3]
[402318830,1768657844889,-500.0,0.00016438,3]
[402318832,1768657844899,-1238.02,0.00016438,3]
[402318834,1768657844909,-272.75784748,0.00016438,3]
[402318836,1768657844918,-849.7,0.00016438,3]
[402318839,1768657844927,-500.0,0.00016438,3]
[402318842,1768657844936,-650.31,0.00016438,3]
[402318845,1768657844945,-500.0,0.00016438,3]
[402318847,1768657844954,-500.0,0.00016438,3]
[402318849,1768657844963,-500.0,0.00016438,3]
[402318851,1768657844972,-500.0,0.00016438,3]
[402318853,1768657844981,-151.0,0.00016438,2]
[402318855,1768657844990,-151.0,0.00016438,2]
[402318857,1768657845000,-500.0,0.00016438,3]
[402318860,1768657845010,-500.0,0.00016438,3]
[402318862,1768657845019,-874.47,0.00016438,3]
[402318863,1768657845028,-151.0,0.00016438,2]
[402318866,1768657845037,-151.0,0.00016438,2]
[402318867,1768657845047,-500.0,0.00016438,3]
[402318869,1768657845057,-500.0,0.00016438,3]
[402318872,1768657845066,-500.0,0.00016438,3]
[402318874,1768657845076,-1880.33,0.00016438,3]
[402318876,1768657845085,-500.0,0.00016438,3]
[402318879,1768657845094,-500.0,0.00016438,3]
[402318880,1768657845103,-1314.12,0.00016438,3]
[402318883,1768657845113,-522.41,0.00016438,3]
[402318885,1768657845122,-500.0,0.00016438,3]
[402318887,1768657845132,-500.0,0.00016438,3]
[402318889,1768657845141,-500.0,0.00016438,3]
[402318890,1768657845151,-1163.36,0.00016438,3]
[402318893,1768657845160,-500.0,0.00016438,3]
[402318894,1768657845170,-500.0,0.00016438,3]
[402318896,1768657845181,-522.78,0.00016438,3]
[402318899,1768657845196,-969.82,0.00016438,3]
[402318901,1768657845206,-500.0,0.00016438,3]
[402318903,1768657845216,-500.0,0.00016438,3]
[402318905,1768657845227,-500.0,0.00016438,3]
[402318907,1768657845238,-500.0,0.00016438,3]
[402318909,1768657845246,-500.0,0.00016438,3]
[402318911,1768657845256,-500.0,0.00016438,3]
[402318913,1768657845267,-671.99,0.00016438,3]
[402318915,1768657845275,-1294.23,0.00016438,3]
[402318917,1768657845286,-500.0,0.00016438,3]
[402318919,1768657845295,-500.0,0.00016438,3]
[402318921,1768657845304,-1076.36,0.00016438,3]
[402318923,1768657845313,-545.1,0.00016438,3]
[402318925,1768657845323,-500.0,0.00016438,3]
[402318927,1768657845332,-655.85,0.00016438,3]
[402318929,1768657845342,-500.0,0.00016438,3]
[402318931,1768657845351,-665.62,0.00016438,3]
[402318933,1768657845360,-500.0,0.00016438,3]
[402318935,1768657845369,-881.47,0.00016438,3]
[402318937,1768657845379,-1336.66,0.00016438,3]
[402318939,1768657845389,-500.0,0.00016438,3]
[402318941,1768657845397,-500.0,0.00016438,3]
[402318943,1768657845407,-1128.68,0.00016438,3]
[402318945,1768657845416,-1509.63,0.00016438,3]
[402318947,1768657845426,-600.01432001,0.00016438,3]
[402318949,1768657845436,-500.0,0.00016438,3]
[402318951,1768657845446,-824.25,0.00016438,3]
[402318953,1768657845455,-1234.55,0.00016438,3]
[402318956,1768657845465,-500.0,0.00016438,3]
[402318958,1768657845475,-1272.68,0.00016438,3]
[402318994,1768657845767,-500.0,0.00016438,3]
[402318997,1768657845777,-500.0,0.00016438,3]
[402318999,1768657845786,-500.0,0.00016438,3]
[402319001,1768657845796,-1029.86,0.00016438,3]
[402319003,1768657845805,-500.0,0.00016438,3]
[402319005,1768657845814,-672.02,0.00016438,3]
[402319007,1768657845823,-500.0,0.00016438,3]
[402319009,1768657845832,-500.0,0.00016438,3]
[402319011,1768657845842,-500.0,0.00016438,3]
[402319013,1768657845852,-612.91517649,0.00016438,3]
[402319015,1768657845863,-500.0,0.00016438,3]
[402319017,1768657845872,-500.0,0.00016438,3]
[402319019,1768657845881,-500.0,0.00016438,3]
[402319021,1768657845890,-500.0,0.00016438,3]
[402319023,1768657845900,-500.0,0.00016438,3]
[402319025,1768657845909,-500.0,0.00016438,3]
[402319027,1768657845919,-2491.55,0.00016438,3]
[402319029,1768657845928,-500.0,0.00016438,3]
[402319031,1768657845937,-500.0,0.00016438,3]
[402319033,1768657845947,-348.9788039,0.00016438,3]
[402319035,1768657845956,-500.0,0.00016438,3]
[402319037,1768657845966,-500.0,0.00016438,3]
[402319039,1768657845975,-500.0,0.00016438,3]
[402319041,1768657845986,-500.0,0.00016438,3]
[402319043,1768657845996,-616.40548762,0.00016438,3]
[402319045,1768657846006,-814.48,0.00016438,3]
[402319047,1768657846016,-500.0,0.00016438,3]
[402319049,1768657846026,-500.0,0.00016438,3]
[402319051,1768657846036,-500.0,0.00016438,3]
[402319052,1768657846045,-731.18,0.00016438,3]
[402319053,1768657846054,-500.0,0.00016438,3]
[402319054,1768657846064,-590.91,0.00016438,3]
[402319055,1768657846073,-500.0,0.00016438,3]
[402319056,1768657846082,-500.0,0.00016438,3]
[402319057,1768657846091,-180.568186,0.00016438,2]
[402319058,1768657846099,-180.568186,0.00016438,2]
[402319059,1768657846109,-500.0,0.00016438,3]
[402319060,1768657846118,-180.568186,0.00016438,2]
[402319061,1768657846126,-500.0,0.00016438,3]
[402319062,1768657846135,-180.568186,0.00016438,2]
[402319063,1768657846144,-896.51,0.00016438,3]
[402319064,1768657846153,-1004.37,0.00016438,3]
[402319065,1768657846162,-500.0,0.00016438,3]
[402319066,1768657846171,-500.0,0.00016438,3]
[402319067,1768657846180,-180.568186,0.00016438,2]
[402319068,1768657846192,-180.568186,0.00016438,2]
[402319069,1768657846201,-765.62,0.00016438,3]
[402319070,1768657846210,-180.568186,0.00016438,2]
[402319071,1768657846219,-349.90564396,0.00016438,3]
[402319072,1768657846229,-180.568186,0.00016438,2]
[402319073,1768657846239,-500.0,0.00016438,3]
[402319074,1768657846248,-621.25,0.00016438,3]
[402319075,1768657846257,-500.0,0.00016438,3]
[402319076,1768657846268,-500.0,0.00016438,3]
[402319077,1768657846277,-877.62,0.00016438,3]
[402319078,1768657846285,-197.65009563,0.00016438,3]
[402319079,1768657846295,-597.38,0.00016438,3]
[402319080,1768657846304,-624.31598401,0.00016438,3]
[402319081,1768657846313,-500.0,0.00016438,3]
[402319082,1768657846323,-500.0,0.00016438,3]
[402319083,1768657846332,-500.0,0.00016438,3]
[402319084,1768657846341,-500.0,0.00016438,3]
[402319085,1768657846350,-500.0,0.00016438,3]
[402319086,1768657846359,-500.0,0.00016438,3]
[402319087,1768657846367,-500.0,0.00016438,3]
[402319088,1768657846377,-910.68,0.00016438,3]
[402319089,1768657846386,-500.0,0.00016438,3]
[402319090,1768657846394,-500.0,0.00016438,3]
[402319091,1768657846403,-500.0,0.00016438,2]
[402319092,1768657846412,-500.0,0.00016438,2]
[402319093,1768657846421,-305.46837696,0.00016438,2]
[402319094,1768657846430,-500.0,0.00016438,3]
[402319095,1768657846439,-517.17,0.00016438,3]
[402319096,1768657846447,-500.0,0.00016438,3]
[402319097,1768657846456,-500.0,0.00016438,3]
[402319098,1768657846465,-497.40170951,0.00016438,3]
[402319099,1768657846474,-500.0,0.00016438,3]
[402319100,1768657846482,-500.0,0.00016438,3]
[402319101,1768657846491,-500.0,0.00016438,3]
[402319102,1768657846500,-500.0,0.00016438,3]
[402319103,1768657846509,-500.0,0.00016438,3]
[402319104,1768657846518,-2614.8,0.00016438,3]
[402319105,1768657846526,-1151.66,0.00016438,3]
[402319106,1768657846535,-500.0,0.00016438,3]
[402319107,1768657846544,-500.0,0.00016438,3]
[402319108,1768657846553,-515.96,0.00016438,3]
[402319109,1768657846562,-1182.46,0.00016438,3]
[402319111,1768657846572,-500.0,0.00016438,3]
[402319113,1768657846581,-764.56,0.00016438,3]
[402319115,1768657846590,-580.48,0.00016438,3]
[402319117,1768657846600,-619.14,0.00016438,3]
[402319119,1768657846609,-500.0,0.00016438,3]
[402319121,1768657846618,-2260.08,0.00016438,3]
[402319123,1768657846627,-500.0,0.00016438,3]
[402319124,1768657846637,-500.0,0.00016438,3]
[402319125,1768657846646,-500.0,0.00016438,3]
[402319126,1768657846655,-1809.31,0.00016438,3]
[402319128,1768657846664,-502.42341707,0.00016438,3]
[402319130,1768657846673,-1512.15,0.00016438,3]
[402319131,1768657846683,-500.0,0.00016438,3]
[402319132,1768657846692,-500.0,0.00016438,3]
[402319133,1768657846701,-742.11,0.00016438,3]
[402319134,1768657846711,-500.0,0.00016438,3]
[402319135,1768657846720,-500.0,0.00016438,3]
[402319136,1768657846729,-500.0,0.00016438,3]
[402319137,1768657846738,-500.0,0.00016438,3]
[402319138,1768657846748,-500.0,0.00016438,3]
[402319139,1768657846758,-500.0,0.00016438,3]
[402319140,1768657846767,-1012.14,0.00016438,3]
[402319141,1768657846777,-572.89,0.00016438,3]
[402319142,1768657846787,-3077.42,0.00016438,3]
[402319143,1768657846796,-500.0,0.00016438,3]
[402319144,1768657846805,-500.0,0.00016438,3]
[402319145,1768657846815,-500.0,0.00016438,3]
[402319146,1768657846825,-500.0,0.00016438,3]
[402319147,1768657846834,-1032.92,0.00016438,3]
[402319148,1768657846844,-516.74,0.00016438,3]
[402319149,1768657846854,-500.0,0.00016438,3]
[402319150,1768657846863,-7840.51,0.00016438,3]
[402319151,1768657846873,-500.0,0.00016438,3]
[402319152,1768657846883,-579.37,0.00016438,3]
[402319153,1768657846892,-555.91,0.00016438,3]
[402319154,1768657846901,-681.0,0.00016438,3]
[402319155,1768657846911,-500.0,0.00016438,3]
[402319156,1768657846920,-500.0,0.00016438,3]
[402319157,1768657846929,-500.0,0.00016438,3]
[402319158,1768657846938,-537.28,0.00016438,3]
[402319159,1768657846947,-500.0,0.00016438,3]
[402319160,1768657846956,-500.0,0.00016438,3]
[402319161,1768657846966,-885.71,0.00016438,3]
[402319162,1768657846976,-1602.33,0.00016438,3]
[402319163,1768657846986,-787.93,0.00016438,3]
[402319164,1768657846995,-1477.56,0.00016438,3]
[402319165,1768657847004,-996.4,0.00016438,3]
[402319166,1768657847014,-622.14,0.00016438,3]
[402319167,1768657847023,-500.0,0.00016438,3]
[402319168,1768657847033,-927.07,0.00016438,3]
[402319169,1768657847044,-533.17,0.00016438,3]
[402319170,1768657847054,-500.0,0.00016438,3]
[402319171,1768657847063,-500.0,0.00016438,3]
[402319172,1768657847072,-998.79,0.00016438,3]
[402319173,1768657847081,-979.48,0.00016438,3]
[402319174,1768657847091,-500.0,0.00016438,3]
[402319175,1768657847100,-579.57,0.00016438,3]
[402319176,1768657847109,-500.0,0.00016438,3]
[402319177,1768657847119,-500.0,0.00016438,3]
[402319178,1768657847128,-500.0,0.00016438,3]
[402319179,1768657847137,-764.37,0.00016438,3]
[402319180,1768657847146,-500.0,0.00016438,3]
[402319181,1768657847156,-500.0,0.00016438,3]
[402319182,1768657847165,-500.0,0.00016438,3]
[402319183,1768657847175,-500.0,0.00016438,3]
[402319184,1768657847185,-1885.86,0.00016438,3]
[402319185,1768657847198,-500.0,0.00016438,3]
[402319186,1768657847207,-500.0,0.00016438,3]
[402319187,1768657847217,-500.0,0.00016438,3]
[402319188,1768657847226,-500.0,0.00016438,3]
[402319189,1768657847237,-500.0,0.00016438,3]
[402319190,1768657847247,-640.09,0.00016438,3]
[402319191,1768657847256,-1336.73,0.00016438,3]
[402319192,1768657847266,-500.0,0.00016438,3]
[402319193,1768657847276,-500.0,0.00016438,3]
[402319194,1768657847285,-500.0,0.00016438,3]
[402319195,1768657847294,-500.0,0.00016438,3]
[402319196,1768657847304,-500.0,0.00016438,3]
[402319197,1768657847313,-500.0,0.00016438,3]
[402319198,1768657847322,-500.0,0.00016438,3]
[402319199,1768657847332,-855.36,0.00016438,3]
[402319200,1768657847341,-500.0,0.00016438,3]
[402319201,1768657847350,-1328.06,0.00016438,3]
[402319202,1768657847359,-1379.16,0.00016438,3]
[402319203,1768657847368,-500.0,0.00016438,3]
[402319204,1768657847382,-500.0,0.00016438,3]
[402319205,1768657847391,-500.0,0.00016438,3]
[402319206,1768657847400,-500.0,0.00016438,3]
[402319207,1768657847409,-500.0,0.00016438,3]
[402319208,1768657847418,-1102.44,0.00016438,3]
[402319209,1768657847427,-500.0,0.00016438,3]
[402319210,1768657847436,-500.0,0.00016438,3]
[402319211,1768657847446,-500.0,0.00016438,3]
[402319212,1768657847455,-631.61,0.00016438,3]
[402319213,1768657847465,-1864.05,0.00016438,3]
[402319214,1768657847474,-500.0,0.00016438,3]
[402319215,1768657847484,-500.0,0.00016438,3]
[402319216,1768657847493,-500.0,0.00016438,3]
[402319217,1768657847505,-1158.4,0.00016438,3]
[402319218,1768657847515,-500.0,0.00016438,3]
[402319219,1768657847524,-520.45827499,0.00016438,3]
[402319220,1768657847533,-551.38,0.00016438,3]
[402319221,1768657847543,-1552.05,0.00016438,3]
[402319222,1768657847552,-500.0,0.00016438,3]
[402319223,1768657847561,-500.0,0.00016438,3]
[402319224,1768657847571,-1114.32,0.00016438,3]
[402319225,1768657847581,-500.0,0.00016438,3]
[402319226,1768657847591,-514.93,0.00016438,3]
[402319227,1768657847600,-526.26,0.00016438,3]
[402319228,1768657847610,-1775.64,0.00016438,3]
[402319229,1768657847620,-500.0,0.00016438,3]
[402319231,1768657847629,-500.0,0.00016438,3]
[402319232,1768657847638,-500.0,0.00016438,3]
[402319235,1768657847649,-500.0,0.00016438,3]
[402319236,1768657847659,-1498.28,0.00016438,3]
[402319239,1768657847668,-500.0,0.00016438,3]
[402319240,1768657847678,-1027.59,0.00016438,3]
[402319243,1768657847688,-500.0,0.00016438,3]
[402319244,1768657847698,-1651.97,0.00016438,3]
[402319247,1768657847708,-550.46,0.00016438,3]
[402319249,1768657847718,-500.0,0.00016438,3]
[402319251,1768657847727,-500.0,0.00016438,3]
[402319252,1768657847737,-500.0,0.00016438,3]
[402319255,1768657847747,-500.0,0.00016438,3]
[402319256,1768657847756,-500.0,0.00016438,3]
[402319258,1768657847765,-903.17,0.00016438,3]
[402319260,1768657847775,-500.0,0.00016438,3]
[402319262,1768657847784,-1602.41,0.00016438,3]
[402319264,1768657847793,-500.0,0.00016438,3]
[402319266,1768657847802,-500.0,0.00016438,3]
[402319268,1768657847811,-500.0,0.00016438,3]
[402319270,1768657847821,-500.0,0.00016438,3]
[402319272,1768657847830,-207.01,0.00016438,2]
[402319274,1768657847839,-500.0,0.00016438,3]
[402319276,1768657847848,-500.0,0.00016438,3]
[402319278,1768657847856,-500.0,0.00016438,3]
[402319280,1768657847866,-500.0,0.00016438,3]
[402319282,1768657847875,-944.23,0.00016438,3]
[402319284,1768657847885,-846.77,0.00016438,3]
[402319286,1768657847894,-631.17,0.00016438,3]
[402319288,1768657847903,-500.0,0.00016438,3]
[402319290,1768657847913,-1445.43,0.00016438,3]
[402319292,1768657847923,-802.04,0.00016438,3]
[402319294,1768657847932,-1417.49,0.00016438,3]